[Event "*** Titled Tuesday Blitz"]
[Site "Chess.com"]
[Date "2020.05.12"]
[Round "8"]
[White "Angel_Hranitel_37"]
[Black "Poghosyan_Suren"]
[Result "0-1"]
[WhiteElo "2359"]
[BlackElo "2507"]
[TimeControl "180+1"]
[EndTime "11:34:27 PDT"]
[Termination "Poghosyan_Suren won on time"]

1. d4 {[%clk 0:02:58.6]} 1... Nf6 {[%clk 0:02:58.9]} 2. Nf3 {[%clk 0:02:58.2]}
2... c5 {[%clk 0:02:58.2]} 3. g3 {[%clk 0:02:59.1]} 3... cxd4 {[%clk 0:02:57.7]}
4. Nxd4 {[%clk 0:03:00]} 4... g6 {[%clk 0:02:56.8]} 5. Bg2 {[%clk 0:02:59.9]}
5... Bg7 {[%clk 0:02:57.7]} 6. O-O {[%clk 0:02:59.8]} 6... O-O {[%clk
0:02:58.2]} 7. b3 {[%clk 0:02:58.9]} 7... Nc6 {[%clk 0:02:57.9]} 8. Bb2 {[%clk
0:02:59.2]} 8... d5 {[%clk 0:02:57.9]} 9. e3 {[%clk 0:02:58.4]} 9... Bg4 {[%clk
0:02:55.6]} 10. Qd2 {[%clk 0:02:56.8]} 10... Qd7 {[%clk 0:02:41]} 11. Nc3 {[%clk
0:02:44.5]} 11... e5 {[%clk 0:02:36]} 12. Nde2 {[%clk 0:02:30.7]} 12... Rfd8
{[%clk 0:02:26]} 13. h3 {[%clk 0:02:18.1]} 13... Bxh3 {[%clk 0:02:23.9]} 14.
Rfd1 {[%clk 0:02:12.3]} 14... Bxg2 {[%clk 0:02:19.4]} 15. Kxg2 {[%clk
0:02:13.2]} 15... d4 {[%clk 0:02:18]} 16. exd4 {[%clk 0:02:04.8]} 16... exd4
{[%clk 0:02:18.9]} 17. Na4 {[%clk 0:02:00.5]} 17... b5 {[%clk 0:02:14.7]} 18.
Nxd4 {[%clk 0:01:55]} 18... bxa4 {[%clk 0:02:10.4]} 19. Qf4 {[%clk 0:01:45.5]}
19... a3 {[%clk 0:01:53.3]} 20. Nb5 {[%clk 0:01:08.9]} 20... Nd5 {[%clk
0:01:46]} 21. Qh4 {[%clk 0:01:06.8]} 21... axb2 {[%clk 0:01:43.3]} 22. Rab1
{[%clk 0:01:06.9]} 22... Ne5 {[%clk 0:01:36.5]} 23. c4 {[%clk 0:01:06.6]} 23...
Qb7 {[%clk 0:01:31.7]} 24. Kf1 {[%clk 0:00:28.7]} 24... Nf3 {[%clk 0:01:20.9]}
25. Qe4 {[%clk 0:00:25.5]} 25... Re8 {[%clk 0:01:06.9]} 26. Qxd5 {[%clk
0:00:21.4]} 26... Qxd5 {[%clk 0:01:01.8]} 27. cxd5 {[%clk 0:00:21.7]} 27... Red8
{[%clk 0:00:47.6]} 28. d6 {[%clk 0:00:21.8]} 28... a6 {[%clk 0:00:41.8]} 29. Na3
{[%clk 0:00:18.6]} 29... Ne5 {[%clk 0:00:24]} 30. Rxb2 {[%clk 0:00:16.5]} 30...
Rd7 {[%clk 0:00:19.3]} 31. Rbd2 {[%clk 0:00:13.9]} 31... Rad8 {[%clk 0:00:18.4]}
32. f4 {[%clk 0:00:14]} 32... Ng4 {[%clk 0:00:17.9]} 33. Rd3 {[%clk 0:00:12.4]}
33... Bf8 {[%clk 0:00:14.4]} 34. Nc4 {[%clk 0:00:12.5]} 34... h5 {[%clk
0:00:14]} 35. Kg2 {[%clk 0:00:12.1]} 35... f5 {[%clk 0:00:13.6]} 36. b4 {[%clk
0:00:12.1]} 36... Kf7 {[%clk 0:00:13.7]} 37. a3 {[%clk 0:00:12.3]} 37... Ke6
{[%clk 0:00:13.7]} 38. Re1+ {[%clk 0:00:11.5]} 38... Kf7 {[%clk 0:00:13.2]} 39.
Red1 {[%clk 0:00:11.2]} 39... Nf6 {[%clk 0:00:13.2]} 40. Ne5+ {[%clk 0:00:10.9]}
40... Ke6 {[%clk 0:00:13.4]} 41. Nxd7 {[%clk 0:00:11.1]} 41... Rxd7 {[%clk
0:00:14.3]} 42. Re1+ {[%clk 0:00:11.7]} 42... Ne4 {[%clk 0:00:13.7]} 43. a4
{[%clk 0:00:12]} 43... Rxd6 {[%clk 0:00:11.4]} 44. Rxd6+ {[%clk 0:00:12.1]}
44... Bxd6 {[%clk 0:00:12.3]} 45. b5 {[%clk 0:00:13]} 45... a5 {[%clk 0:00:12]}
46. Rc1 {[%clk 0:00:12.9]} 46... Kd5 {[%clk 0:00:12.1]} 47. Rc6 {[%clk
0:00:13.5]} 47... Nc5 {[%clk 0:00:12.3]} 48. Rc8 {[%clk 0:00:09.8]} 48... Nxa4
{[%clk 0:00:12.2]} 49. Ra8 {[%clk 0:00:10.4]} 49... Bb4 {[%clk 0:00:11.4]} 50.
Rg8 {[%clk 0:00:09.7]} 50... Nc3 {[%clk 0:00:10.5]} 51. Rxg6 {[%clk 0:00:10]}
51... Nxb5 {[%clk 0:00:10.2]} 52. Rg5 {[%clk 0:00:10.7]} 52... Nd4 {[%clk
0:00:11.1]} 53. Rxh5 {[%clk 0:00:10.9]} 53... a4 {[%clk 0:00:10.9]} 54. g4
{[%clk 0:00:11.4]} 54... a3 {[%clk 0:00:11.1]} 55. Rh1 {[%clk 0:00:06.7]} 55...
Bc3 {[%clk 0:00:07.2]} 56. gxf5 {[%clk 0:00:05.6]} 56... Nxf5 {[%clk 0:00:08.1]}
57. Kf3 {[%clk 0:00:05.1]} 57... a2 {[%clk 0:00:08.5]} 58. Kg4 {[%clk
0:00:05.5]} 58... Ke4 {[%clk 0:00:08.4]} 59. Rc1 {[%clk 0:00:03.8]} 59... Ne3+
{[%clk 0:00:08.2]} 60. Kg5 {[%clk 0:00:04.3]} 60... Bb2 {[%clk 0:00:08.7]} 61.
Re1 {[%clk 0:00:03.9]} 61... Bc3 {[%clk 0:00:08]} 62. Rh1 {[%clk 0:00:03.8]}
62... Nd5 {[%clk 0:00:07.8]} 63. Rd1 {[%clk 0:00:03.7]} 63... Bf6+ {[%clk
0:00:08.7]} 64. Kg6 {[%clk 0:00:03.6]} 64... Bd4 {[%clk 0:00:08]} 65. f5 {[%clk
0:00:03.4]} 65... Nf4+ {[%clk 0:00:08.1]} 66. Kg5 {[%clk 0:00:03.8]} 66... Nd3
{[%clk 0:00:08.4]} 67. f6 {[%clk 0:00:02.4]} 67... Ne5 {[%clk 0:00:09.3]} 0-1

[Event "*** Titled Tuesday Blitz"]
[Site "Chess.com"]
[Date "2020.05.12"]
[Round "8"]
[White "smshk35"]
[Black "Chessmasterzt"]
[Result "1/2-1/2"]
[WhiteElo "2411"]
[BlackElo "2556"]
[TimeControl "180+1"]
[EndTime "11:34:40 PDT"]
[Termination "Game drawn - insufficient material"]

1. e4 {[%clk 0:01:47]} 1... d6 {[%clk 0:03:00.9]} 2. d4 {[%clk 0:01:46.3]} 2...
Nf6 {[%clk 0:03:00.5]} 3. Nc3 {[%clk 0:01:41.7]} 3... e5 {[%clk 0:03:00.9]} 4.
dxe5 {[%clk 0:01:37.6]} 4... dxe5 {[%clk 0:03:01.8]} 5. Qxd8+ {[%clk 0:01:35.5]}
5... Kxd8 {[%clk 0:03:02.7]} 6. Bg5 {[%clk 0:01:33.9]} 6... Be6 {[%clk
0:03:00.7]} 7. O-O-O+ {[%clk 0:01:32.3]} 7... Nd7 {[%clk 0:03:01.2]} 8. g3
{[%clk 0:01:30.1]} 8... Kc8 {[%clk 0:02:51.8]} 9. Bh3 {[%clk 0:01:29.7]} 9...
Bb4 {[%clk 0:02:46.3]} 10. Bxe6 {[%clk 0:01:28.5]} 10... fxe6 {[%clk 0:02:47.2]}
11. Nge2 {[%clk 0:01:27.1]} 11... Rf8 {[%clk 0:02:45.8]} 12. h3 {[%clk
0:01:25.2]} 12... Bxc3 {[%clk 0:02:39]} 13. Nxc3 {[%clk 0:01:24.5]} 13... a5
{[%clk 0:02:39]} 14. a4 {[%clk 0:01:15.5]} 14... Nc5 {[%clk 0:02:35.5]} 15. Rhe1
{[%clk 0:01:12.8]} 15... Ra6 {[%clk 0:02:26.5]} 16. b3 {[%clk 0:01:02.8]} 16...
Rd6 {[%clk 0:02:25.6]} 17. f4 {[%clk 0:00:41.7]} 17... Rxd1+ {[%clk 0:02:24.3]}
18. Kxd1 {[%clk 0:00:40.6]} 18... Nh5 {[%clk 0:02:18.2]} 19. fxe5 {[%clk
0:00:25.6]} 19... Rf3 {[%clk 0:02:13.7]} 20. g4 {[%clk 0:00:24]} 20... Rxc3
{[%clk 0:02:07.7]} 21. gxh5 {[%clk 0:00:23.8]} 21... Rxh3 {[%clk 0:02:08]} 22.
Be7 {[%clk 0:00:22]} 22... Nd7 {[%clk 0:02:06]} 23. Rg1 {[%clk 0:00:20.7]} 23...
Nxe5 {[%clk 0:01:52.1]} 24. Rxg7 {[%clk 0:00:20.7]} 24... Rxh5 {[%clk
0:01:52.5]} 25. Bf6 {[%clk 0:00:20.1]} 25... Ng6 {[%clk 0:01:44.4]} 26. e5
{[%clk 0:00:16.9]} 26... b6 {[%clk 0:01:41.9]} 27. Kd2 {[%clk 0:00:16.5]} 27...
Rh3 {[%clk 0:01:30.5]} 28. Kc1 {[%clk 0:00:15.4]} 28... Rh2 {[%clk 0:01:28.7]}
29. Kb2 {[%clk 0:00:15.4]} 29... Rh5 {[%clk 0:01:29.3]} 30. Kc3 {[%clk
0:00:15.2]} 30... Rh2 {[%clk 0:01:28.5]} 31. Kb2 {[%clk 0:00:15.4]} 31... Nf4
{[%clk 0:01:26.4]} 32. Re7 {[%clk 0:00:14.4]} 32... Rh5 {[%clk 0:01:10.1]} 33.
Rg7 {[%clk 0:00:09]} 33... Ng6 {[%clk 0:01:03.7]} 34. Rf7 {[%clk 0:00:08.7]}
34... h6 {[%clk 0:00:56.7]} 35. Rh7 {[%clk 0:00:08.9]} 35... Nxe5 {[%clk
0:00:57.1]} 36. Bxe5 {[%clk 0:00:08.8]} 36... Rxe5 {[%clk 0:00:58]} 37. Rxh6
{[%clk 0:00:09.4]} 37... Kd7 {[%clk 0:00:58.3]} 38. Kc3 {[%clk 0:00:08.8]} 38...
Kd6 {[%clk 0:00:58.8]} 39. Rh8 {[%clk 0:00:08.7]} 39... Rc5+ {[%clk 0:00:59]}
40. Kd3 {[%clk 0:00:08.8]} 40... Rd5+ {[%clk 0:00:59.9]} 41. Kc3 {[%clk
0:00:09]} 41... Rg5 {[%clk 0:00:58.4]} 42. Kd4 {[%clk 0:00:08.5]} 42... Rg2
{[%clk 0:00:57.2]} 43. Kd3 {[%clk 0:00:08.1]} 43... Rg3+ {[%clk 0:00:56.7]} 44.
Kd4 {[%clk 0:00:08]} 44... Rg4+ {[%clk 0:00:51.6]} 45. Kd3 {[%clk 0:00:07.9]}
45... Kd5 {[%clk 0:00:51.3]} 46. Rd8+ {[%clk 0:00:06.6]} 46... Kc5 {[%clk
0:00:51.2]} 47. Rd7 {[%clk 0:00:06.5]} 47... c6 {[%clk 0:00:50.6]} 48. Re7
{[%clk 0:00:06.6]} 48... Rg6 {[%clk 0:00:45.7]} 49. c3 {[%clk 0:00:06.8]} 49...
Rg3+ {[%clk 0:00:42.3]} 50. Kd2 {[%clk 0:00:07.2]} 50... Kd6 {[%clk 0:00:40.4]}
51. Rb7 {[%clk 0:00:06.6]} 51... Kc5 {[%clk 0:00:38.1]} 52. Re7 {[%clk
0:00:06.5]} 52... Rg6 {[%clk 0:00:33.1]} 53. Kd3 {[%clk 0:00:06.9]} 53... b5
{[%clk 0:00:32.1]} 54. Ra7 {[%clk 0:00:04.9]} 54... Kb6 {[%clk 0:00:31.2]} 55.
Re7 {[%clk 0:00:03.8]} 55... bxa4 {[%clk 0:00:30]} 56. bxa4 {[%clk 0:00:04.7]}
56... Kc5 {[%clk 0:00:23.6]} 57. Ra7 {[%clk 0:00:04.7]} 57... Rg3+ {[%clk
0:00:23.9]} 58. Kc2 {[%clk 0:00:04.6]} 58... Kc4 {[%clk 0:00:24.3]} 59. Rxa5
{[%clk 0:00:04.8]} 59... Rxc3+ {[%clk 0:00:23.9]} 60. Kd2 {[%clk 0:00:05.4]}
60... Rd3+ {[%clk 0:00:24.4]} 61. Ke2 {[%clk 0:00:05.5]} 61... Rd5 {[%clk
0:00:24.9]} 62. Ra6 {[%clk 0:00:05.5]} 62... Rc5 {[%clk 0:00:22.4]} 63. Ra8
{[%clk 0:00:05.7]} 63... e5 {[%clk 0:00:21.1]} 64. Ke3 {[%clk 0:00:05.7]} 64...
Kd5 {[%clk 0:00:18.5]} 65. Rd8+ {[%clk 0:00:05.4]} 65... Ke6 {[%clk 0:00:18.5]}
66. Ra8 {[%clk 0:00:06.3]} 66... Rc3+ {[%clk 0:00:18]} 67. Kd2 {[%clk
0:00:06.2]} 67... Ra3 {[%clk 0:00:18.3]} 68. a5 {[%clk 0:00:07.1]} 68... Kd5
{[%clk 0:00:18]} 69. a6 {[%clk 0:00:07.8]} 69... Ke4 {[%clk 0:00:16.3]} 70. a7
{[%clk 0:00:07.9]} 70... Ra2+ {[%clk 0:00:15.8]} 71. Kc3 {[%clk 0:00:08.3]}
71... c5 {[%clk 0:00:15.9]} 72. Kb3 {[%clk 0:00:08.5]} 72... Ra5 {[%clk
0:00:16]} 73. Kc4 {[%clk 0:00:08.7]} 73... Ke3 {[%clk 0:00:13]} 74. Re8 {[%clk
0:00:08.7]} 74... Rxa7 {[%clk 0:00:12.9]} 75. Rxe5+ {[%clk 0:00:09]} 75... Kf4
{[%clk 0:00:12.6]} 76. Rxc5 {[%clk 0:00:09.9]} 76... Ra4+ {[%clk 0:00:12.5]} 77.
Kb5 {[%clk 0:00:10.5]} 77... Re4 {[%clk 0:00:13.1]} 78. Rc4 {[%clk 0:00:11.2]}
78... Rxc4 {[%clk 0:00:12.3]} 79. Kxc4 {[%clk 0:00:12.1]} 1/2-1/2

[Event "*** Titled Tuesday Blitz"]
[Site "Chess.com"]
[Date "2020.05.12"]
[Round "8"]
[White "GM_DarwinLaylo"]
[Black "Trickov"]
[Result "1/2-1/2"]
[WhiteElo "2522"]
[BlackElo "2317"]
[TimeControl "180+1"]
[EndTime "11:34:41 PDT"]
[Termination "Game drawn - insufficient material"]

1. c4 {[%clk 0:03:00.4]} 1... c6 {[%clk 0:02:57.8]} 2. Nc3 {[%clk 0:03:00.2]}
2... d5 {[%clk 0:02:57.8]} 3. e3 {[%clk 0:03:00.5]} 3... Nf6 {[%clk 0:02:57.2]}
4. Nf3 {[%clk 0:03:00.8]} 4... Bf5 {[%clk 0:02:57.1]} 5. cxd5 {[%clk 0:02:57.9]}
5... cxd5 {[%clk 0:02:55.5]} 6. Qb3 {[%clk 0:02:58]} 6... Qb6 {[%clk 0:02:48.6]}
7. Nxd5 {[%clk 0:02:56.5]} 7... Qxb3 {[%clk 0:02:47.1]} 8. Nxf6+ {[%clk
0:02:55.2]} 8... exf6 {[%clk 0:02:45.8]} 9. axb3 {[%clk 0:02:55.3]} 9... Nc6
{[%clk 0:02:44]} 10. Bb5 {[%clk 0:02:48.4]} 10... Rc8 {[%clk 0:02:33.8]} 11. Nd4
{[%clk 0:02:41.5]} 11... Bd7 {[%clk 0:02:32.6]} 12. Nxc6 {[%clk 0:02:38.2]}
12... bxc6 {[%clk 0:02:31.7]} 13. Bc4 {[%clk 0:02:35.4]} 13... Rc7 {[%clk
0:02:17]} 14. d4 {[%clk 0:02:30.8]} 14... Bd6 {[%clk 0:02:14.3]} 15. Bd2 {[%clk
0:02:28.7]} 15... Ke7 {[%clk 0:02:10.5]} 16. Ke2 {[%clk 0:02:24.5]} 16... Rb8
{[%clk 0:02:09.9]} 17. Bc3 {[%clk 0:02:16.7]} 17... c5 {[%clk 0:01:54.8]} 18. d5
{[%clk 0:02:02.3]} 18... Bb5 {[%clk 0:01:51]} 19. Ra5 {[%clk 0:01:54.8]} 19...
a6 {[%clk 0:01:47.4]} 20. f4 {[%clk 0:01:46.8]} 20... Rcb7 {[%clk 0:01:45.6]}
21. Rha1 {[%clk 0:01:39.3]} 21... Kd7 {[%clk 0:01:41.9]} 22. g3 {[%clk
0:01:37.8]} 22... Re8 {[%clk 0:01:36.8]} 23. Kd3 {[%clk 0:01:37.3]} 23... h5
{[%clk 0:01:31.1]} 24. e4 {[%clk 0:01:34.9]} 24... h4 {[%clk 0:01:06.4]} 25. Re1
{[%clk 0:01:32.7]} 25... Rh8 {[%clk 0:00:50.6]} 26. e5 {[%clk 0:01:29.5]} 26...
Bc7 {[%clk 0:00:50.4]} 27. Raa1 {[%clk 0:01:21]} 27... hxg3 {[%clk 0:00:50]} 28.
hxg3 {[%clk 0:01:20.5]} 28... Rh3 {[%clk 0:00:50.5]} 29. Re3 {[%clk 0:01:19.7]}
29... Rb8 {[%clk 0:00:39.4]} 30. exf6 {[%clk 0:01:00.1]} 30... gxf6 {[%clk
0:00:38.7]} 31. Bxf6 {[%clk 0:01:00]} 31... Re8 {[%clk 0:00:34.9]} 32. Rae1
{[%clk 0:00:55.9]} 32... Rxe3+ {[%clk 0:00:30.9]} 33. Rxe3 {[%clk 0:00:55.5]}
33... Bd8 {[%clk 0:00:30.1]} 34. Bxd8 {[%clk 0:00:47.5]} 34... Kxd8 {[%clk
0:00:29.6]} 35. Ke4 {[%clk 0:00:40.4]} 35... Kd7 {[%clk 0:00:24]} 36. Kf5 {[%clk
0:00:29.7]} 36... Rh2 {[%clk 0:00:21]} 37. Kf6 {[%clk 0:00:28]} 37... Rxb2
{[%clk 0:00:20.7]} 38. Kxf7 {[%clk 0:00:27.3]} 38... Rc2 {[%clk 0:00:19.9]} 39.
f5 {[%clk 0:00:16.5]} 39... Bxc4 {[%clk 0:00:18.8]} 40. bxc4 {[%clk 0:00:16.5]}
40... Rxc4 {[%clk 0:00:18.9]} 41. Re6 {[%clk 0:00:11.9]} 41... Rg4 {[%clk
0:00:16.3]} 42. Rg6 {[%clk 0:00:11.1]} 42... Rd4 {[%clk 0:00:10.6]} 43. Kg7
{[%clk 0:00:10.3]} 43... Rxd5 {[%clk 0:00:08.5]} 44. f6 {[%clk 0:00:10.6]} 44...
Rf5 {[%clk 0:00:08.1]} 45. f7 {[%clk 0:00:10.8]} 45... Ke7 {[%clk 0:00:06.9]}
46. Rc6 {[%clk 0:00:07]} 46... Rxf7+ {[%clk 0:00:06.9]} 47. Kg6 {[%clk
0:00:05.6]} 47... Rf3 {[%clk 0:00:07]} 48. g4 {[%clk 0:00:05.8]} 48... Rc3
{[%clk 0:00:07.1]} 49. Rxa6 {[%clk 0:00:05.5]} 49... c4 {[%clk 0:00:07]} 50. g5
{[%clk 0:00:05]} 50... Rg3 {[%clk 0:00:06.1]} 51. Rc6 {[%clk 0:00:04.1]} 51...
c3 {[%clk 0:00:06]} 52. Kh6 {[%clk 0:00:03.8]} 52... Kd7 {[%clk 0:00:06.1]} 53.
Rc4 {[%clk 0:00:03.6]} 53... Kd6 {[%clk 0:00:06.2]} 54. g6 {[%clk 0:00:03.9]}
54... Kd5 {[%clk 0:00:06.2]} 55. Rc8 {[%clk 0:00:03.9]} 55... Kd4 {[%clk
0:00:06.5]} 56. g7 {[%clk 0:00:04.3]} 56... Kd3 {[%clk 0:00:06.2]} 57. g8=Q
{[%clk 0:00:03.1]} 57... Rxg8 {[%clk 0:00:05.9]} 58. Rxg8 {[%clk 0:00:03.5]}
58... c2 {[%clk 0:00:05.9]} 59. Rc8 {[%clk 0:00:03.7]} 59... Kd2 {[%clk
0:00:05.4]} 60. Kg5 {[%clk 0:00:04]} 60... c1=Q {[%clk 0:00:05.1]} 61. Rxc1
{[%clk 0:00:04.5]} 61... Kxc1 {[%clk 0:00:04.9]} 1/2-1/2

[Event "*** Titled Tuesday Blitz"]
[Site "Chess.com"]
[Date "2020.05.12"]
[Round "8"]
[White "Morshynska"]
[Black "VALPARAISO37"]
[Result "1/2-1/2"]
[WhiteElo "2171"]
[BlackElo "2351"]
[TimeControl "180+1"]
[EndTime "11:34:46 PDT"]
[Termination "Game drawn by agreement"]

1. e4 {[%clk 0:03:00.9]} 1... e5 {[%clk 0:02:59.8]} 2. Nf3 {[%clk 0:02:59.6]}
2... Nc6 {[%clk 0:03:00.2]} 3. Bc4 {[%clk 0:02:59]} 3... Bc5 {[%clk 0:02:57.6]}
4. c3 {[%clk 0:02:57.8]} 4... Nf6 {[%clk 0:02:57.5]} 5. d3 {[%clk 0:02:56.6]}
5... d6 {[%clk 0:02:56.6]} 6. Bb3 {[%clk 0:02:56.2]} 6... O-O {[%clk 0:02:54.8]}
7. h3 {[%clk 0:02:55.7]} 7... a6 {[%clk 0:02:54.3]} 8. Nbd2 {[%clk 0:02:50.5]}
8... Ba7 {[%clk 0:02:53.8]} 9. Nf1 {[%clk 0:02:46.3]} 9... b5 {[%clk 0:02:52.3]}
10. Ng3 {[%clk 0:02:37.8]} 10... d5 {[%clk 0:02:51.7]} 11. Qe2 {[%clk
0:02:36.1]} 11... dxe4 {[%clk 0:02:50.9]} 12. dxe4 {[%clk 0:02:37]} 12... Re8
{[%clk 0:02:49.8]} 13. O-O {[%clk 0:02:24.8]} 13... Be6 {[%clk 0:02:49.7]} 14.
Rd1 {[%clk 0:02:22]} 14... Qc8 {[%clk 0:02:48.7]} 15. Ng5 {[%clk 0:02:13.9]}
15... Bxb3 {[%clk 0:02:47.6]} 16. axb3 {[%clk 0:02:14.8]} 16... h6 {[%clk
0:02:47.2]} 17. Nf3 {[%clk 0:02:14.1]} 17... Qe6 {[%clk 0:02:45.2]} 18. b4
{[%clk 0:02:01]} 18... Ne7 {[%clk 0:02:43.8]} 19. Nh4 {[%clk 0:01:53.6]} 19...
Kh7 {[%clk 0:02:35.9]} 20. Nhf5 {[%clk 0:01:44.1]} 20... Nxf5 {[%clk 0:02:35]}
21. Nxf5 {[%clk 0:01:45]} 21... Ng8 {[%clk 0:02:31.6]} 22. Be3 {[%clk
0:01:35.4]} 22... g6 {[%clk 0:02:27.6]} 23. Bxa7 {[%clk 0:01:29.9]} 23... Rxa7
{[%clk 0:02:25.5]} 24. Ne3 {[%clk 0:01:29.1]} 24... c6 {[%clk 0:02:23.9]} 25.
Qg4 {[%clk 0:01:12.3]} 25... Nf6 {[%clk 0:02:17.8]} 26. Qxe6 {[%clk 0:01:11]}
26... Rxe6 {[%clk 0:02:18.3]} 27. f3 {[%clk 0:01:11.5]} 27... Nh5 {[%clk
0:02:15]} 28. Kf2 {[%clk 0:01:10.2]} 28... Nf4 {[%clk 0:02:13.9]} 29. Rd8 {[%clk
0:01:03.1]} 29... h5 {[%clk 0:02:12.6]} 30. Nc2 {[%clk 0:00:53.6]} 30... h4
{[%clk 0:02:09.6]} 31. Ne1 {[%clk 0:00:51.3]} 31... Ree7 {[%clk 0:02:05.9]} 32.
Nd3 {[%clk 0:00:43.5]} 32... Nxd3+ {[%clk 0:01:55.8]} 33. Rxd3 {[%clk
0:00:44.4]} 33... Red7 {[%clk 0:01:45.4]} 34. Ke2 {[%clk 0:00:43.3]} 34... Rxd3
{[%clk 0:01:44.6]} 35. Kxd3 {[%clk 0:00:44.2]} 35... Kg7 {[%clk 0:01:43.5]} 36.
b3 {[%clk 0:00:37.7]} 36... f5 {[%clk 0:01:43]} 37. c4 {[%clk 0:00:34.5]} 37...
Kf6 {[%clk 0:01:42.4]} 38. Ke3 {[%clk 0:00:31.4]} 38... Ke6 {[%clk 0:01:37.5]}
39. c5 {[%clk 0:00:28.7]} 39... f4+ {[%clk 0:01:29.3]} 40. Kd3 {[%clk
0:00:26.1]} 40... Ke7 {[%clk 0:01:27.7]} 41. Kc3 {[%clk 0:00:25.6]} 41... Kd8
{[%clk 0:01:25.6]} 42. Rd1+ {[%clk 0:00:21.6]} 42... Rd7 {[%clk 0:01:25.4]} 43.
Rxd7+ {[%clk 0:00:18.3]} 43... Kxd7 {[%clk 0:01:25.3]} 44. Kb2 {[%clk
0:00:17.4]} 44... Ke6 {[%clk 0:01:23.2]} 45. Kc3 {[%clk 0:00:17.3]} 45... Kf6
{[%clk 0:01:22.2]} 46. Kd3 {[%clk 0:00:17]} 46... Kg5 {[%clk 0:01:20.9]} 47. Kc3
{[%clk 0:00:17.4]} 47... Kh5 {[%clk 0:01:20.8]} 48. Kb2 {[%clk 0:00:17.6]} 48...
g5 {[%clk 0:01:19.7]} 49. Kc3 {[%clk 0:00:17.1]} 49... Kh6 {[%clk 0:01:19]} 50.
Kd3 {[%clk 0:00:16.6]} 50... Kg7 {[%clk 0:01:19.3]} 51. Kc3 {[%clk 0:00:16.8]}
51... Kf7 {[%clk 0:01:19.3]} 52. Kd3 {[%clk 0:00:17.2]} 52... Ke7 {[%clk
0:01:18.8]} 53. Kc3 {[%clk 0:00:18.1]} 53... Kd7 {[%clk 0:01:18.3]} 54. Kb2
{[%clk 0:00:18]} 54... Kc7 {[%clk 0:01:18]} 55. Ka2 {[%clk 0:00:17.6]} 55... Kb7
{[%clk 0:01:17.9]} 56. Kb2 {[%clk 0:00:17.7]} 56... Ka8 {[%clk 0:01:17.2]} 57.
Ka2 {[%clk 0:00:17.7]} 57... Kb8 {[%clk 0:01:16.6]} 58. Kb2 {[%clk 0:00:17.9]}
58... Kc8 {[%clk 0:01:16.4]} 59. Kc3 {[%clk 0:00:18]} 59... Kd7 {[%clk
0:01:16.4]} 60. Kd3 {[%clk 0:00:18.3]} 60... Ke6 {[%clk 0:01:16.2]} 61. Kc3
{[%clk 0:00:18.6]} 61... Kf6 {[%clk 0:01:16.1]} 62. Kd3 {[%clk 0:00:19]} 62...
Kg6 {[%clk 0:01:16.1]} 63. Kc3 {[%clk 0:00:19.9]} 63... Kh5 {[%clk 0:01:16]} 64.
Kd3 {[%clk 0:00:20.2]} 64... Kh6 {[%clk 0:01:15.9]} 65. Kc3 {[%clk 0:00:20.6]}
65... Kg6 {[%clk 0:01:13.4]} 66. Kd3 {[%clk 0:00:21.1]} 66... Kf6 {[%clk
0:01:13.2]} 67. Kc3 {[%clk 0:00:22]} 67... Ke6 {[%clk 0:01:13.1]} 68. Kd3 {[%clk
0:00:22.9]} 68... Kd7 {[%clk 0:01:13.3]} 69. Kc3 {[%clk 0:00:23.3]} 69... Kc7
{[%clk 0:01:13.4]} 70. Kb2 {[%clk 0:00:23.3]} 70... Kb7 {[%clk 0:01:13.8]} 71.
Ka3 {[%clk 0:00:23.7]} 71... Ka7 {[%clk 0:01:14.1]} 72. Kb2 {[%clk 0:00:24]}
72... Ka8 {[%clk 0:01:14.3]} 73. Ka3 {[%clk 0:00:24.5]} 73... Kb7 {[%clk
0:01:14.5]} 74. Kb2 {[%clk 0:00:24.7]} 74... Kc7 {[%clk 0:01:14.8]} 75. Ka3
{[%clk 0:00:25.3]} 75... Kd7 {[%clk 0:01:15]} 76. Kb2 {[%clk 0:00:25.6]} 76...
Ke7 {[%clk 0:01:14.8]} 77. Ka3 {[%clk 0:00:26]} 77... Kd7 {[%clk 0:01:14.2]} 78.
Ka2 {[%clk 0:00:26.3]} 78... Kc7 {[%clk 0:01:14.3]} 79. Ka3 {[%clk 0:00:26.7]}
79... Kb8 {[%clk 0:01:13.6]} 80. Kb2 {[%clk 0:00:26.9]} 80... Kc8 {[%clk
0:01:13.5]} 81. Ka3 {[%clk 0:00:27.2]} 81... Kc7 {[%clk 0:01:13.4]} 82. Kb2
{[%clk 0:00:27.4]} 82... Kd7 {[%clk 0:01:13.6]} 83. Ka3 {[%clk 0:00:27.6]} 83...
Ke6 {[%clk 0:01:13.4]} 84. Kb2 {[%clk 0:00:27.8]} 84... Kf6 {[%clk 0:01:13.1]}
85. Kc3 {[%clk 0:00:27.9]} 85... Kg6 {[%clk 0:01:12.9]} 86. Kb2 {[%clk
0:00:28.1]} 86... Kh6 {[%clk 0:01:12.9]} 87. Ka3 {[%clk 0:00:28]} 87... g4
{[%clk 0:01:11.7]} 88. Kb2 {[%clk 0:00:24.9]} 88... Kg5 {[%clk 0:01:09.9]} 89.
Kc3 {[%clk 0:00:23.9]} 89... g3 {[%clk 0:01:02.8]} 90. Kd3 {[%clk 0:00:24]}
90... Kf6 {[%clk 0:01:03.2]} 91. Kc3 {[%clk 0:00:24.1]} 91... Kf7 {[%clk
0:01:03.1]} 92. Kb2 {[%clk 0:00:24.3]} 92... Ke8 {[%clk 0:01:03.5]} 93. Ka2
{[%clk 0:00:24.6]} 93... Kd8 {[%clk 0:01:03.9]} 94. Kb2 {[%clk 0:00:24.4]} 94...
Kc8 {[%clk 0:01:04.3]} 95. Ka2 {[%clk 0:00:24.8]} 95... Kb7 {[%clk 0:01:04.3]}
96. Kb2 {[%clk 0:00:25.2]} 96... Ka8 {[%clk 0:01:04.3]} 97. Ka2 {[%clk
0:00:25.5]} 97... Kb8 {[%clk 0:01:03.1]} 98. Kb2 {[%clk 0:00:25.9]} 98... Kc7
{[%clk 0:01:03.3]} 99. Ka2 {[%clk 0:00:26.2]} 99... Kd7 {[%clk 0:01:03.3]} 100.
Kb2 {[%clk 0:00:26.6]} 1/2-1/2